bitfinex-derivatives/quotes_BNBF0:USTF0_20251203
["timestamp","ask_amount","ask_price","bid_price","bid_amount"]
[1764791283319,1.10113203,906.5,905.68,1.46]
[1764791285920,1.10113203,906.51,905.68,1.46]
[1764791286419,1.10113203,906.52,905.68,1.46]
[1764791288521,1.10113203,906.51,905.68,1.46]
[1764791290018,1.10113203,906.52,905.68,1.46]
[1764791290218,1.10113203,906.51,905.68,1.46]
[1764791291323,1.10113203,906.5,905.68,1.46]
[1764791291621,1.10113203,906.51,905.68,1.46]
[1764791292018,1.10113203,906.51,905.69,1.288]
[1764791292620,1.10113203,906.48,905.69,1.288]
[1764791292822,1.10113203,906.45,905.69,1.288]
[1764791294224,1.10113203,906.44,905.69,1.288]
[1764791295325,1.10113203,906.46,905.69,1.288]
[1764791295725,1.10113203,906.47,905.69,1.288]
[1764791296225,1.10113203,906.46,905.69,1.288]
[1764791297226,5.83525534,906.78,905.69,1.288]
[1764791297227,1.10113203,906.45,905.69,1.288]
[1764791297727,1.10113203,906.44,905.69,1.288]
[1764791298227,1.10113203,906.43,905.69,1.288]
[1764791298527,1.10113203,906.44,905.69,1.288]
[1764791299224,1.10113203,906.43,905.69,1.288]
[1764791300126,1.10113203,906.41,905.69,1.288]
[1764791300726,1.10113203,906.42,905.69,1.288]
[1764791300924,1.10113203,906.44,905.69,1.288]
[1764791301122,1.10113203,906.42,905.69,1.288]
[1764791302127,1.10113203,906.41,905.69,1.288]
[1764791302426,5.83525534,906.78,905.69,1.288]
[1764791302427,1.10113203,906.39,905.69,1.288]
[1764791303229,1.10113203,906.36,905.69,1.288]
[1764791303529,1.10113203,906.36,905.7,1.574]
[1764791304030,1.10113203,906.37,905.7,1.574]
[1764791305125,1.10113203,906.36,905.7,1.574]
[1764791306228,1.10113203,906.35,905.7,1.574]
[1764791307333,1.10113203,906.34,905.7,1.574]
[1764791308428,1.10113203,906.33,905.7,1.574]
[1764791309132,1.10113203,906.34,905.7,1.574]
[1764791311731,1.10113203,906.33,905.7,1.574]
[1764791315439,1.10113203,906.34,905.7,1.574]
[1764791318142,1.10113203,906.31,905.7,1.574]
[1764791318342,1.10113203,906.3,905.7,1.574]
[1764791318541,5.83525534,906.78,905.7,1.574]
[1764791318542,1.10113203,906.28,905.7,1.574]
[1764791319240,1.10113203,906.28,905.71,1.73]
[1764791320044,1.10113203,906.19,905.71,1.73]
[1764791320239,5.83525534,906.78,905.71,1.73]
[1764791320240,1.10113203,906.09,905.71,1.73]
[1764791320443,5.83525534,906.78,905.71,1.73]
[1764791320444,1.10113203,906.11,905.71,1.73]
[1764791321140,1.10113203,906.12,905.71,1.73]
[1764791322342,1.10113203,906.13,905.71,1.73]
[1764791323549,1.10113203,906.14,905.71,1.73]
[1764791324350,1.10113203,906.15,905.71,1.73]
[1764791326152,1.10113203,906.16,905.71,1.73]
[1764791327450,1.10113203,906.17,905.71,1.73]
[1764791329353,1.10113203,906.18,905.71,1.73]
[1764791331353,1.10113203,906.19,905.71,1.73]
[1764791333353,1.10113203,906.2,905.71,1.73]
[1764791336157,1.10113203,906.21,905.7,1.574]
[1764791337360,1.10113203,906.23,905.7,1.574]
[1764791337559,1.10113203,906.32,905.7,1.574]
[1764791338260,1.10113203,906.33,905.7,1.574]
[1764791338760,1.10113203,906.33,905.71,1.375]
[1764791338957,1.10113203,906.34,905.71,1.375]
[1764791339255,1.10113203,906.33,905.71,1.375]
[1764791341155,1.10113203,906.39,905.71,1.375]
[1764791341360,1.10113203,906.4,905.71,1.375]
[1764791342460,1.10113203,906.41,905.71,1.375]
[1764791342658,1.10113203,906.42,905.71,1.375]
[1764791342864,1.10113203,906.44,905.71,1.375]
[1764791343063,1.10113203,906.47,905.71,1.375]
[1764791343258,1.10113203,906.51,905.71,1.375]
[1764791343562,1.10113203,906.52,905.71,1.375]
[1764791344362,1.10113203,906.53,905.71,1.375]
[1764791345363,1.10113203,906.51,905.71,1.375]
[1764791345965,1.10113203,906.49,905.71,1.375]
[1764791346365,1.10113203,906.5,905.71,1.375]
[1764791347166,1.10113203,906.5,905.72,1.266]
[1764791349561,1.10113203,906.51,905.72,1.266]
[1764791349766,1.10113203,906.64,905.72,1.266]
[1764791350266,1.10113203,906.63,905.72,1.266]
[1764791350460,1.10113203,906.64,905.72,1.266]
[1764791351366,1.10113203,906.65,905.72,1.266]
[1764791353468,1.10113203,906.66,905.72,1.266]
[1764791353968,1.10113203,906.65,905.72,1.266]
[1764791354572,1.10113203,906.67,905.72,1.266]
[1764791355071,1.10113203,906.67,905.73,1.64]
[1764791355273,1.10113203,906.69,905.73,1.64]
[1764791356373,1.10113203,906.7,905.73,1.64]
[1764791358372,1.10113203,906.71,905.73,1.64]
[1764791359673,6.93638737,906.78,905.73,1.64]
[1764791360778,5.83525534,906.78,905.73,1.64]
[1764791363577,1.10113203,906.89,905.73,1.64]
[1764791365277,1.10113203,906.9,905.73,1.64]
[1764791366382,1.10113203,906.91,905.73,1.64]
[1764791367484,1.10113203,906.92,905.73,1.64]
[1764791367883,1.10113203,906.91,905.73,1.64]
[1764791368081,1.10113203,906.89,905.73,1.64]
[1764791368480,1.10113203,906.9,905.73,1.64]
[1764791368982,1.10113203,906.89,905.73,1.64]
[1764791369384,1.10113203,906.9,905.73,1.64]
[1764791370988,1.10113203,906.9,905.74,1.308]
[1764791371385,1.10113203,906.91,905.74,1.308]
[1764791372290,1.10113203,906.83,905.74,1.308]
[1764791372690,1.10113203,906.82,905.74,1.308]
[1764791376701,1.10113203,906.83,905.74,1.308]
[1764791378201,1.10113203,906.84,905.74,1.308]
[1764791381297,1.10113203,906.83,905.74,1.308]
[1764791381802,1.10113203,906.83,905.75,1.614]
[1764791384404,1.10113203,906.82,905.75,1.614]
[1764791385402,1.10113203,906.81,905.75,1.614]
[1764791387406,1.10113203,906.8,905.75,1.614]
[1764791388506,1.10113203,906.79,905.75,1.614]
[1764791389406,1.10113203,906.78,905.75,1.614]
[1764791390008,1.10113203,906.91,905.75,1.614]
[1764791390303,1.10113203,906.9,905.75,1.614]
[1764791390604,1.10113203,906.93,905.75,1.614]
[1764791391005,1.10113203,906.95,905.76,0.81821507]
[1764791391503,1.10113203,906.93,905.75,2.43221507]
[1764791391703,1.10113203,906.94,905.76,0.81821507]
[1764791392408,1.10113203,906.93,905.76,0.81821507]
[1764791393303,1.10113203,906.92,905.77,0.81821507]
[1764791394311,1.10113203,906.91,905.78,0.81821507]
[1764791394511,1.10113203,906.9,905.78,0.81821507]
[1764791394710,1.10113203,906.89,905.77,0.81821507]
[1764791395410,1.10113203,906.88,905.79,0.81821507]
[1764791396407,1.10113203,906.87,905.8,0.81821507]
[1764791397410,1.10113203,906.85,905.82,0.81821507]
[1764791398512,1.10113203,906.84,905.75,1.614]
[1764791398713,1.10113203,906.84,905.82,0.81847576]
[1764791399510,1.10113203,906.82,905.83,0.81847576]
[1764791400909,1.10113203,906.82,905.84,1.377]
[1764791401315,1.10113203,906.81,905.84,2.19547576]
[1764791402418,1.10113203,906.8,905.85,0.81847576]
[1764791402618,1.10113203,906.78,905.84,1.377]
[1764791402914,1.10113203,906.72,905.84,1.377]
[1764791403414,1.10113203,906.64,905.84,1.377]
[1764791404317,1.65169805,906.8,905.84,1.377]
[1764791404318,1.10113203,906.63,905.84,1.377]
[1764791404818,1.10113203,906.66,905.84,1.377]
[1764791406421,1.10113203,906.65,905.84,1.377]
[1764791406919,1.10113203,906.7,905.84,1.377]
[1764791407419,1.10113203,906.68,905.84,1.377]
[1764791408018,1.10113203,906.66,905.84,1.377]
[1764791408522,1.10113203,906.65,905.84,1.377]
[1764791409420,1.10113203,906.64,905.84,1.377]
[1764791409623,1.10113203,906.65,905.84,1.377]
[1764791412527,1.10113203,906.66,905.84,1.377]
[1764791412826,1.10113203,906.67,905.84,1.377]
[1764791413126,1.10113203,906.66,905.8,0.81847576]
[1764791414323,1.10113203,906.66,905.81,0.81847576]
[1764791415030,1.10113203,906.66,905.82,1.932]
[1764791416830,1.10113203,906.67,905.82,2.75047576]
[1764791417029,5.87564971,907.02,905.87,0.81847576]
[1764791417030,1.10113203,906.72,905.87,0.81847576]
[1764791417325,1.10113203,906.71,905.87,0.81847576]
[1764791419133,1.10113203,906.71,905.82,1.932]
[1764791419134,1.10113203,906.74,905.9,0.81847576]
[1764791419837,1.10113203,906.75,905.91,0.81847576]
[1764791420534,1.10113203,906.76,905.91,0.81847576]
[1764791421334,1.10113203,906.74,905.9,0.81847576]
[1764791423338,1.10113203,906.74,905.82,1.932]
[1764791423339,1.10113203,906.77,905.92,0.81847576]
[1764791423638,1.10113203,906.89,906.04,0.81847576]
[1764791424036,1.10113203,906.9,906.05,0.81847576]
[1764791424336,1.10113203,906.97,906.09,0.81847576]
[1764791425236,1.10113203,906.98,906.08,0.81847576]
[1764791426238,1.10113203,906.99,906.07,0.81847576]
[1764791427043,1.10113203,907.03,906.11,0.81847576]
[1764791427243,1.10113203,907.04,906.09,0.81847576]
[1764791428138,1.10113203,907.05,906.08,0.81847576]
[1764791429245,1.10113203,907.06,906.07,0.81847576]
[1764791432242,1.10113203,907.08,906.06,1.878]
[1764791433248,1.10113203,907.09,906.06,1.878]
[1764791434249,1.10113203,907.1,906.06,1.878]
[1764791434744,1.10113203,907.12,906.07,0.81847576]
[1764791435149,1.10113203,907.13,906.06,2.69647576]
[1764791436148,1.10113203,907.14,906.06,2.69647576]
[1764791437245,1.10113203,907.14,906.06,1.878]
[1764791437950,1.10113203,907.13,906.06,1.878]
[1764791438952,1.10113203,907.12,906.06,1.878]
[1764791439252,1.10113203,907.13,906.06,1.878]
[1764791443256,1.10113203,907.14,906.06,1.878]
[1764791443452,1.10113203,907.13,906.06,1.878]
[1764791446261,1.10113203,907.14,906.06,1.878]
[1764791446460,1.10113203,907.13,906.06,1.878]
[1764791447262,1.10113203,907.14,906.06,1.878]
[1764791447562,1.10113203,907.13,906.06,1.878]
[1764791449758,1.10113203,907.14,906.06,1.878]
[1764791450061,1.10113203,907.15,906.06,1.878]
[1764791451461,1.10113203,907.16,906.06,1.878]
[1764791457564,1.10113203,907.17,906.06,1.878]
[1764791458265,1.10113203,907.16,906.06,1.878]
[1764791458465,1.10113203,907.17,906.06,1.878]
[1764791458766,1.10113203,907.17,906.07,1.687]
[1764791461167,1.10113203,907.18,906.07,1.687]
[1764791463364,1.10113203,907.17,906.07,1.687]
[1764791465269,1.10113203,907.16,906.07,1.687]
[1764791466766,1.10113203,907.15,906.07,1.687]
[1764791467472,1.10113203,907.2,906.1,0.81847576]
[1764791468067,1.10113203,907.22,906.12,0.81847576]
[1764791468273,1.10113203,907.22,906.13,0.81847576]
[1764791469173,1.10113203,907.22,906.07,1.687]
[1764791469174,1.10113203,907.22,906.14,0.81847576]
[1764791470172,1.10113203,907.21,906.14,0.81847576]
[1764791471378,1.10113203,907.2,906.15,0.81847576]
[1764791471579,1.10113203,907.22,906.16,0.81847576]
[1764791471777,1.10113203,907.22,906.17,0.81847576]
[1764791472281,1.10113203,907.22,906.18,0.81847576]
[1764791473177,1.10113203,907.22,906.17,0.81847576]
[1764791473380,1.10113203,907.21,906.18,0.81847576]
[1764791474181,1.10113203,907.2,906.19,0.81847576]
[1764791475283,1.10113203,907.19,906.2,0.81847576]
[1764791476382,1.10113203,907.18,906.21,0.81847576]
[1764791477383,1.10113203,907.17,906.22,0.81847576]
[1764791478184,1.10113203,907.17,906.23,0.81847576]
[1764791479178,1.10113203,907.16,906.24,0.81847576]
[1764791480179,1.10113203,907.16,906.23,0.81847576]
[1764791480480,1.10113203,907.15,906.24,0.81847576]
[1764791481081,1.10113203,907.16,906.26,0.81847576]
[1764791481381,1.10113203,907.23,906.35,0.81847576]
[1764791482184,1.10113203,907.24,906.34,0.81847576]
[1764791482381,1.10113203,907.23,906.35,0.81847576]
[1764791483190,1.10113203,907.22,906.36,0.81847576]
[1764791484087,1.10113203,907.22,906.37,0.81847576]
[1764791484283,1.65169805,907.4,906.37,2.41547576]
[1764791484284,1.10113203,907.23,906.37,2.41547576]
[1764791485188,1.10113203,907.24,906.37,2.41547576]
[1764791486189,1.10113203,907.24,906.37,1.597]
[1764791487185,1.10113203,907.25,906.37,1.597]
[1764791487389,1.10113203,907.18,906.37,1.597]
[1764791488890,1.10113203,907.17,906.37,1.597]
[1764791492894,1.10113203,907.17,906.38,1.892]
[1764791496801,1.10113203,907.18,906.38,1.892]
[1764791504007,1.10113203,907.19,906.38,1.892]
[1764791504206,1.10113203,907.21,906.38,1.892]
[1764791504407,1.10113203,907.24,906.39,1.521]
[1764791506708,1.10113203,907.31,906.43,0.81900853]
[1764791507105,1.10113203,907.32,906.44,0.81900853]
[1764791508210,1.10113203,907.33,906.43,0.81900853]
[1764791508710,1.10113203,907.34,906.45,0.81900853]
[1764791509210,1.10113203,907.34,906.44,0.81900853]
[1764791510212,1.10113203,907.35,906.44,0.81900853]
[1764791510713,1.10113203,907.35,906.45,1.936]
[1764791511513,1.10113203,907.36,906.45,2.75500853]
[1764791512112,1.10113203,907.37,906.45,2.75500853]
[1764791512416,1.10113203,907.37,906.45,2.75495876]
[1764791512912,1.10113203,907.45,906.53,0.81895876]
[1764791513113,1.10113203,907.46,906.52,0.81895876]
[1764791513314,1.10113203,907.45,906.52,0.81895876]
[1764791514213,1.10113203,907.46,906.51,0.81895876]
[1764791515012,1.10113203,907.48,906.53,0.81895876]
[1764791515217,1.10113203,907.48,906.52,0.81895876]
[1764791516217,1.10113203,907.49,906.52,0.81895876]
[1764791516417,1.10113203,907.51,906.54,0.81895876]
[1764791517112,1.10113203,907.52,906.53,0.81895876]
[1764791517417,1.10113203,907.55,906.57,0.81895876]
[1764791518117,1.10113203,907.56,906.56,0.81895876]
[1764791519014,1.10113203,907.59,906.59,0.81895876]
[1764791519219,1.10113203,907.7,906.66,0.81895876]
[1764791519715,1.10113203,907.72,906.69,0.81895876]
[1764791520819,1.10113203,907.72,906.7,0.81895876]
[1764791521121,1.10113203,907.74,906.68,0.81895876]
[1764791522316,0.1917889,907.89,906.67,0.81895876]
[1764791522317,1.10113203,907.75,906.67,0.81895876]
[1764791523221,1.10113203,907.77,906.66,0.81895876]
[1764791524121,1.10113203,907.78,906.65,0.81895876]
[1764791525321,1.10113203,907.78,906.64,0.81895876]
[1764791526220,1.10113203,907.79,906.63,0.81895876]
[1764791527317,1.10113203,907.8,906.63,0.81895876]
[1764791528324,1.10113203,907.81,906.62,0.81895876]
[1764791529219,1.10113203,907.82,906.61,0.81895876]
[1764791531321,1.10113203,907.83,906.6,0.81895876]
[1764791533326,1.10113203,907.84,906.59,0.81895876]
[1764791533828,1.10113203,907.84,906.45,1.936]
[1764791534024,1.10113203,907.84,906.59,0.81601851]
[1764791534228,1.10113203,907.85,906.6,0.81601851]
[1764791535129,1.10113203,907.86,906.6,0.81601851]
[1764791537129,1.10113203,907.86,906.59,0.81601851]
[1764791537926,1.10113203,907.86,906.6,0.81601851]
[1764791538129,1.10113203,907.87,906.59,0.81601851]
[1764791545236,1.10113203,907.88,906.58,0.81601851]
[1764791548237,1.10113203,907.88,906.59,1.569]
[1764791549241,1.10113203,907.87,906.59,1.569]
[1764791550342,1.10113203,907.87,906.59,2.38451196]
[1764791552142,1.10113203,907.86,906.59,2.38451196]
[1764791553244,1.10113203,907.86,906.6,0.81551196]
[1764791554142,1.10113203,907.85,906.61,0.81551196]
[1764791555641,1.10113203,907.85,906.62,0.81551196]
[1764791556245,1.10113203,907.85,906.63,0.81551196]
[1764791556847,1.10113203,907.84,906.62,0.81551196]
[1764791557145,1.10113203,907.83,906.62,0.81551196]
[1764791558247,1.10113203,907.82,906.63,0.81551196]
[1764791559146,1.10113203,907.81,906.64,2.54251196]
[1764791560150,1.10113203,907.8,906.65,0.81551196]
[1764791561148,1.10113203,907.79,906.66,0.81551196]
[1764791562251,1.10113203,907.78,906.67,0.81551196]
[1764791563151,1.10113203,907.77,906.69,0.81551196]
[1764791564155,1.10113203,907.75,906.7,0.81551196]
[1764791565156,1.10113203,907.74,906.71,0.81551196]
[1764791566257,1.10113203,907.73,906.73,0.81551196]
[1764791567252,1.10113203,907.72,906.74,0.81551196]
[1764791568157,1.10113203,907.71,906.75,0.81551196]
[1764791569158,1.10113203,907.77,906.84,0.81551196]
[1764791570257,1.10113203,907.76,906.85,0.81551196]
[1764791571260,1.10113203,907.75,906.86,0.81551196]
[1764791572260,1.10113203,907.74,906.87,0.81551196]
[1764791572962,1.10113203,907.74,906.71,1.09545645]
[1764791573162,1.10113203,907.75,906.9,0.81916729]
[1764791574259,1.10113203,907.75,906.91,0.81916729]
[1764791574862,1.10113203,907.8,906.96,0.81916729]
[1764791575263,1.10113203,907.8,906.97,0.81916729]
[1764791577161,1.10113203,907.79,906.98,0.81916729]
[1764791577466,1.10113203,907.88,907.07,0.81916729]
[1764791577961,1.10113203,907.9,907.08,0.81916729]
[1764791578262,1.10113203,907.9,907.07,0.81916729]
[1764791578461,1.10113203,907.92,907.09,0.81916729]
[1764791579265,1.10113203,907.93,907.07,0.81916729]
[1764791581360,1.10113203,907.96,907.08,0.81916729]
[1764791582462,1.10113203,907.98,907.07,0.81916729]
[1764791583462,6.82854852,907.99,907.06,0.81916729]
[1764791584366,5.72741649,907.99,907.05,0.81916729]
[1764791585362,5.72741649,907.99,907.04,0.81916729]
[1764791586965,1.10113203,907.95,906.97,0.81916729]
[1764791587265,1.10113203,907.96,907.05,1.343]
[1764791589263,1.10113203,907.97,907.05,1.343]
[1764791594269,1.10113203,907.98,907.05,1.343]
[1764791594770,1.10113203,907.92,907.05,1.343]
[1764791596773,1.10113203,907.88,907.05,1.343]
[1764791601076,1.10113203,907.87,907.05,1.343]
[1764791601276,1.10113203,907.86,906.86,0.81916729]
[1764791602473,1.10113203,907.86,906.87,0.81916729]
[1764791602676,1.10113203,907.88,906.88,0.81916729]
[1764791603273,1.10113203,907.87,906.88,0.81916729]
[1764791603678,1.10113203,907.87,906.89,1.8]
[1764791604174,1.10113203,907.87,906.9,1.614]
[1764791605877,1.10113203,907.92,906.93,0.81916729]
[1764791608382,1.10113203,907.92,906.94,0.81916729]
[1764791610183,1.10113203,907.91,906.94,0.81916729]
[1764791610478,1.10113203,907.91,906.9,1.614]
[1764791610479,1.10113203,907.9,906.93,0.81916729]
[1764791610679,1.10113203,907.89,906.91,0.81916729]
[1764791612182,1.10113203,907.88,906.92,0.81916729]
[1764791613488,1.10113203,907.87,906.91,0.81916729]
[1764791614986,1.10113203,907.86,906.91,0.81916729]
[1764791615186,1.10113203,907.81,906.9,1.614]
[1764791615384,1.10113203,907.77,906.9,1.614]
[1764791616386,1.10113203,907.76,906.9,1.614]
[1764791622287,1.10113203,907.75,906.9,1.614]
[1764791623790,1.10113203,907.69,906.9,1.614]
[1764791623991,1.10113203,907.63,906.9,1.614]
[1764791624286,1.10113203,907.62,906.9,1.614]
[1764791624485,1.10113203,907.63,906.9,1.614]
[1764791624890,1.10113203,907.62,906.9,1.614]
[1764791626391,1.10113203,907.61,906.9,1.614]
[1764791626890,1.65169805,907.78,906.9,1.614]
[1764791626891,1.10113203,907.63,906.9,1.614]
[1764791627191,1.10113203,907.62,906.9,1.614]
[1764791627390,1.10113203,907.63,906.9,1.614]
[1764791628191,1.10113203,907.64,906.9,1.614]
[1764791628389,1.10113203,907.7,906.9,1.614]
[1764791630291,1.10113203,907.71,906.9,1.614]
[1764791634197,1.10113203,907.72,906.9,1.614]
[1764791635398,1.10113203,907.66,906.9,1.614]
[1764791635598,1.10113203,907.65,906.9,1.614]
[1764791635797,1.10113203,907.65,906.91,1.665]
[1764791636498,1.10113203,907.66,906.91,1.665]
[1764791640805,1.10113203,907.62,906.91,1.665]
[1764791642301,1.10113203,907.63,906.91,1.665]
[1764791642601,1.10113203,907.61,906.91,1.665]
[1764791643009,1.10113203,907.56,906.91,1.665]
[1764791643212,1.10113203,907.54,906.91,1.665]
[1764791643411,1.10113203,907.55,906.91,1.665]
[1764791643710,5.72741649,907.99,906.91,1.665]
[1764791643711,1.10113203,907.49,906.91,1.665]
[1764791644407,1.10113203,907.5,906.91,1.665]
[1764791646508,1.10113203,907.49,906.91,1.665]
[1764791647312,1.10113203,907.5,906.91,1.665]
[1764791648311,1.10113203,907.49,906.91,1.665]
[1764791648512,1.10113203,907.5,906.91,1.665]
[1764791649508,1.10113203,907.49,906.91,1.665]
[1764791650313,1.10113203,907.5,906.91,1.665]
[1764791652414,1.10113203,907.51,906.91,1.665]
[1764791655314,1.10113203,907.52,906.91,1.665]
[1764791659417,1.10113203,907.53,906.91,1.665]
[1764791659617,1.10113203,907.61,906.91,1.665]
[1764791659821,1.10113203,907.64,906.91,1.665]
[1764791660517,1.10113203,907.63,906.91,1.665]
[1764791661619,1.10113203,907.64,906.91,1.665]
[1764791661817,1.10113203,907.64,906.92,1.67]
[1764791664425,1.10113203,907.63,906.92,1.67]
[1764791665525,1.10113203,907.6,906.92,1.67]
[1764791665724,1.10113203,907.66,906.92,1.67]
[1764791666323,1.10113203,907.65,906.92,1.67]
[1764791668326,1.10113203,907.64,906.92,1.67]
[1764791669329,1.10113203,907.63,906.92,1.67]
[1764791670328,1.10113203,907.62,906.92,1.67]
[1764791672325,1.10113203,907.61,906.92,1.67]
[1764791673329,1.10113203,907.6,906.92,1.67]
[1764791674231,1.10113203,907.59,906.92,1.67]
[1764791674630,1.10113203,907.59,906.93,1.378]
[1764791675430,1.10113203,907.62,906.93,1.378]
[1764791676926,1.10113203,907.61,906.93,1.378]
[1764791677230,1.10113203,907.62,906.93,1.378]
[1764791678228,1.10113203,907.61,906.93,1.378]
[1764791680332,1.10113203,907.6,906.93,1.378]
[1764791682333,1.10113203,907.59,906.93,1.378]
[1764791684428,1.10113203,907.58,906.93,1.378]
[1764791691529,1.10113203,907.57,906.93,1.378]
[1764791694337,1.10113203,907.56,906.93,1.378]
[1764791694539,1.10113203,907.56,906.92,1.67]
[1764791697034,1.10113203,907.56,906.93,1.306]
[1764791700841,1.10113203,907.49,906.93,1.306]
[1764791701543,1.10113203,907.47,906.93,1.306]
[1764791703342,1.10113203,907.43,906.93,1.306]
[1764791705443,1.10113203,907.51,906.93,1.306]
[1764791707140,1.10113203,907.5,906.93,1.306]
[1764791711346,1.10113203,907.49,906.93,1.306]
[1764791713448,1.10113203,907.48,906.93,1.306]
[1764791715047,1.10113203,907.48,906.94,1.609]
[1764791716349,1.10113203,907.47,906.94,1.609]
[1764791717348,1.10113203,907.46,906.94,1.609]
[1764791719352,1.10113203,907.45,906.94,1.609]
[1764791731364,1.10113203,907.44,906.94,1.609]
[1764791732073,1.10113203,907.41,906.94,1.609]
[1764791732272,1.10113203,907.4,906.94,1.609]
[1764791732472,1.10113203,907.36,906.94,1.609]
[1764791733173,1.10113203,907.14,906.94,1.609]
[1764791733370,1.10113203,907.18,906.94,1.609]
[1764791734270,1.10113203,907.2,906.94,1.609]
[1764791735372,1.10113203,907.21,906.94,1.609]
[1764791736277,1.10113203,907.23,906.94,1.609]
[1764791736475,1.10113203,907.24,906.94,1.609]
[1764791737480,1.10113203,907.25,906.94,1.609]
[1764791737876,1.10113203,907.24,906.94,1.609]
[1764791738281,1.10113203,907.25,906.94,1.609]
[1764791739275,1.10113203,907.26,906.94,1.609]
[1764791739681,1.10113203,907.26,906.95,1.628]
[1764791740381,1.10113203,907.27,906.95,1.628]
[1764791740584,1.10113203,907.28,906.95,1.628]
[1764791741385,1.10113203,907.29,906.95,1.628]
[1764791743481,1.10113203,907.3,906.95,1.628]
[1764791744083,1.10113203,907.33,906.95,1.628]
[1764791746488,1.65169805,907.5,906.95,1.628]
[1764791746489,1.10113203,907.34,906.95,1.628]
[1764791748890,1.10113203,907.36,906.95,1.628]
[1764791749090,1.10113203,907.43,906.95,1.628]
[1764791749291,1.10113203,907.47,906.95,1.628]
[1764791750090,1.65169805,907.63,906.95,1.628]
[1764791750091,1.10113203,907.44,906.95,1.628]
[1764791756597,1.10113203,907.35,906.95,1.628]
[1764791760796,1.10113203,907.34,906.94,1.609]
[1764791761302,1.10113203,907.35,906.94,1.609]
[1764791762598,1.10113203,907.35,906.95,1.922]
[1764791763305,1.10113203,907.36,906.95,1.922]
[1764791763503,1.10113203,907.55,906.95,1.922]
[1764791763701,1.10113203,907.53,906.95,1.922]
[1764791765401,1.10113203,907.51,906.95,1.922]
[1764791772311,1.10113203,907.5,906.95,1.922]
[1764791773610,1.10113203,907.52,906.95,1.922]
[1764791775012,1.10113203,907.52,906.96,1.313]
[1764791775517,1.10113203,907.56,906.96,1.313]
[1764791777315,1.10113203,907.55,906.96,1.313]
[1764791782620,1.10113203,907.55,906.97,1.75]
[1764791784924,1.10113203,907.56,906.97,1.75]
[1764791792026,1.10113203,907.57,906.97,1.75]
[1764791792326,1.10113203,907.58,906.97,1.75]
[1764791793232,1.10113203,907.57,906.97,1.75]
[1764791794029,1.10113203,907.56,906.97,1.75]
[1764791797235,1.10113203,907.55,906.97,1.75]
[1764791797634,1.10113203,907.53,906.97,1.75]
[1764791798340,1.10113203,907.54,906.97,1.75]
[1764791800241,1.10113203,907.53,906.97,1.75]
[1764791802643,1.10113203,907.55,906.97,1.75]
[1764791803241,1.10113203,907.54,906.97,1.75]
[1764791805650,1.10113203,907.54,906.6,0.81743775]
[1764791806252,1.10113203,907.53,906.6,0.81743775]
[1764791807349,1.10113203,907.53,906.61,0.81743775]
[1764791807554,1.10113203,907.5,906.59,0.81743775]
[1764791807752,1.10113203,907.5,906.62,1.629]
[1764791808053,1.10113203,907.5,906.63,1.231]
[1764791810254,1.10113203,907.49,906.63,1.231]
[1764791811751,1.10113203,907.51,906.63,1.231]
[1764791812255,1.10113203,907.5,906.63,1.231]
[1764791817459,1.10113203,907.49,906.63,1.231]
[1764791818454,1.10113203,907.48,906.63,2.04843775]
[1764791819459,1.10113203,907.48,906.64,0.81743775]
[1764791820561,1.10113203,907.48,906.65,0.81743775]
[1764791820770,1.10113203,907.47,906.65,0.81743775]
[1764791821260,1.10113203,907.45,906.66,0.81743775]
[1764791822063,1.10113203,907.47,906.67,0.81743775]
[1764791822362,1.10113203,907.45,906.69,0.81743775]
[1764791823160,1.10113203,907.42,906.71,0.81743775]
[1764791825166,1.10113203,907.42,906.72,0.81743775]
[1764791826565,2.75283008,908.24,906.75,0.81743775]
[1764791826566,1.10113203,907.46,906.75,0.81743775]
[1764791830367,1.10113203,907.47,906.76,0.81743775]
[1764791830971,1.10113203,907.48,906.77,2.75243775]
[1764791831270,1.10113203,907.49,906.77,1.935]
[1764791832066,1.10113203,907.49,906.78,1.61]
[1764791836472,1.10113203,907.5,906.78,1.61]